fUSD/lending_fUSD_20240421
["ID","MTS","AMOUNT","RATE_DAILY","PERIOD"]
[323156337,1713737443828,-833.08,0.000127,2]
[323156339,1713737443842,-520.75,0.000127,2]
[323156341,1713737443853,-150.0,0.000127,2]
[323156343,1713737443863,-150.0,0.000127,2]
[323156344,1713737443873,-150.0,0.000127,2]
[323156346,1713737443882,-160.17,0.000127,2]
[323156348,1713737443891,-350.33,0.000127,2]
[323156350,1713737443903,-150.0,0.000127,2]
[323156352,1713737443913,-345.61,0.000127,2]
[323156354,1713737443922,-150.0,0.000127,2]
[323156356,1713737443931,-150.0,0.000127,2]
[323156358,1713737443940,-150.0,0.000127,2]
[323156360,1713737443951,-172.3,0.00012721,2]
[323156362,1713737443959,-150.0,0.000128,2]
[323156364,1713737443968,-521.87,0.000128,2]
[323156365,1713737443977,-150.84,0.000128,2]
[323156366,1713737443986,-150.0,0.000128,2]
[323156367,1713737443995,-150.0,0.000128,2]
[323156368,1713737444004,-150.0,0.000128,2]
[323156369,1713737444013,-268.88,0.000128,2]
[323156370,1713737444022,-329.28,0.000128,2]
[323156371,1713737444031,-150.0,0.000128,2]
[323156372,1713737444040,-150.0,0.000128,2]
[323156373,1713737444049,-150.0,0.000128,2]
[323156374,1713737444058,-521.87,0.000128,2]
[323156375,1713737444068,-350.33,0.000128,2]
[323156376,1713737444077,-150.0,0.000128,2]
[323156377,1713737444086,-162.73,0.000128,2]
[323156378,1713737444095,-150.0,0.000128,2]
[323156379,1713737444104,-150.0,0.000128,2]
[323156380,1713737444113,-521.87,0.000128,2]
[323156381,1713737444123,-418.99,0.000128,2]
[323156382,1713737444132,-350.33,0.000128,2]
[323156383,1713737444141,-162.73,0.000128,2]
[323156384,1713737444152,-150.0,0.000128,2]
[323156385,1713737444161,-150.0,0.000128,2]
[323156386,1713737444169,-150.0,0.000128,2]
[323156387,1713737444180,-330.43711,0.0001287,2]
[323156388,1713737444189,-1000.0,0.00012895,2]
[323156389,1713737444198,-500.0,0.00012895,2]
[323156390,1713737444207,-1000.0,0.00012896,2]
[323156391,1713737444217,-1000.0,0.00012896,2]
[323156392,1713737444226,-500.0,0.00012896,2]
[323156393,1713737444236,-10000.0,0.000129,2]
[323156394,1713737444245,-839.39,0.000129,2]
[323156395,1713737444255,-497.64,0.000129,2]
[323156396,1713737444265,-350.16,0.000129,2]
[323156397,1713737444274,-700.58,0.000129,2]
[323156398,1713737444283,-325.4,0.000129,2]
[323156399,1713737444293,-150.0,0.000129,2]
[323156400,1713737444302,-150.0,0.000129,2]
[323156401,1713737444311,-282.52213368,0.000129,2]
[323156402,1713737444320,-167.4783154,0.000129,2]
[323156403,1713737444329,-159.36,0.00012966,2]
[323156404,1713737444339,-2125.5861019,0.00012989,2]
[323156405,1713737444349,-2298.2018525,0.00012989,2]
[323156406,1713737444359,-12329.2528683,0.00012989,2]
[323156407,1713737444368,-1844.6796648,0.00012991,2]
[323156408,1713737444377,-762.0935144,0.00012998,2]
[323156409,1713737444386,-307.80513931,0.00012999,2]
[323156410,1713737444396,-1038.66349537,0.00012999,2]
[323156411,1713737444405,-3110.59577047,0.00012999,2]
[323156412,1713737444414,-4030110.22274561,0.00013,2]
[323156413,1713737444442,-765.0266161,0.00013,2]
[323156414,1713737444454,-2899.890204,0.00013,2]
[323156415,1713737444465,-690.0,0.00013,2]
[323156416,1713737444480,-2066.21856474,0.00013,2]
[323156417,1713737444529,-550.955965,0.00013,2]
[323156418,1713737444588,-1889.08592415,0.00013,2]
[323156419,1713737444600,-4829.15087214,0.00013,2]
[323156420,1713737444611,-3159.3085,0.00013,2]
[323156426,1713737446478,-37042.81570225,0.00013,2]
[323156427,1713737446542,-392.67559406,0.00013,2]
[323156428,1713737446606,-839978.78571476,0.00013,2]
[323156433,1713737501792,157.042106,0.00022,30]
[323156434,1713737511424,314.042106,0.00022,30]
[323156435,1713737517885,628.042106,0.00022,30]
[323156439,1713737530521,1056.042106,0.00022,30]
[323156440,1713737558860,2112.042106,0.00022,30]
[323156441,1713737572669,157.042106,0.00022,30]
[323156442,1713737574050,157.042106,0.00022,30]
[323156443,1713737576489,157.042106,0.00022,30]
[323156444,1713737583321,157.042106,0.00022,30]
[323156445,1713737601919,272.042107,0.00022,30]
[323156446,1713737647427,150.0,0.00011955,2]
[323156447,1713737647451,150.0,0.00011955,2]
[323156448,1713737647472,150.0,0.00011955,2]
[323156449,1713737647493,150.0,0.00011955,2]
[323156450,1713737647515,198.62217318,0.00011955,2]
[323156451,1713737647539,2436.96952682,0.00011955,2]
[323156452,1713737658237,1000.0,0.00011955,2]
[323156453,1713737699685,150.0,0.00011992,2]
[323156454,1713737793422,225.21,0.0001075,2]
[323156455,1713737793446,479.56,0.0001075,2]
[323156456,1713737818574,150.0,0.00011992,2]
[323156457,1713737818595,150.0,0.00011992,2]
[323156458,1713737823730,1010.98964422,0.00012,2]
[323156459,1713737836847,300.0,0.00011992,2]
[323156463,1713737947797,150.0,0.00011955,2]
[323156464,1713737948106,150.0,0.00011955,2]
[323156465,1713737948126,150.0,0.00011955,2]
[323156466,1713737948147,150.0,0.00011955,2]
[323156467,1713737948167,150.0,0.00011955,2]
[323156468,1713737948187,150.0,0.00011955,2]
[323156469,1713737948206,150.0,0.00011955,2]
[323156470,1713737948226,150.0,0.00011955,2]
[323156471,1713737948250,1300.0,0.00011955,2]
[323156472,1713737964586,1200.0,0.00011992,2]
[323156473,1713738473191,150.0,0.00010232,2]
[323156474,1713738473212,150.0,0.00010232,2]
[323156475,1713738473237,150.0,0.00010232,2]
[323156476,1713738473258,150.0,0.00010232,2]
[323156477,1713738473278,102.39,0.00010232,2]
[323156478,1713738490661,450.0,0.00011992,2]
[323156479,1713738561121,1750.0,0.00012,2]
[323156499,1713738631526,-150.0,0.00012052,2]
[323156500,1713738631536,-1000.0,0.00012053,2]
[323156501,1713738631545,-3161.63458272,0.00012053,2]
[323156502,1713738631556,-1474.09241909,0.00012053,2]
[323156503,1713738631596,-3549.66154191,0.00012053,2]
[323156504,1713738631642,-510.04241426,0.00012053,2]
[323156505,1713738631693,-8542.89999,0.00012053,2]
[323156506,1713738631706,-2723.75840732,0.00012053,2]
[323156513,1713738632344,-17836.90665836,0.00012053,2]
[323156514,1713738632390,-3002.23633276,0.00012053,2]
[323156515,1713738632401,-9313.21597719,0.00012053,2]
[323156516,1713738632412,-364.18813852,0.00012053,2]
[323156517,1713738632424,-1087.10900317,0.00012053,2]
[323156518,1713738632458,-1214.03923066,0.00012053,2]
[323156524,1713738637492,-573.2828905,0.00012053,2]
[323156525,1713738637827,-3093.80000001,0.00012053,2]
[323156526,1713738637855,-685796.64501553,0.00012053,2]
[323156527,1713738637865,-245000.0,0.00012055,2]
[323156528,1713738637874,-46873.7673,0.00012055,2]
[323156529,1713738637884,-1073.78,0.00012125,2]
[323156530,1713738637894,-4409.23748393,0.00012136,2]
[323156531,1713738637903,-15523.42,0.00012236,2]
[323156532,1713738637913,-1000.0,0.00012271,2]
[323156533,1713738637922,-250.0,0.00012355,2]
[323156534,1713738637931,-172.3,0.00012419,2]
[323156535,1713738637941,-702.39,0.00012496,2]
[323156536,1713738637950,-4409.23748384,0.00012559,2]
[323156537,1713738637960,-157.46,0.00012644,2]
[323156538,1713738637969,-182.41,0.00012678,2]
[323156539,1713738637978,-157.46,0.00012707,2]
[323156540,1713738637987,-275.36426,0.0001287,2]
[323156541,1713738637996,-505.0,0.000129,2]
[323156542,1713738638006,-188.34808912,0.000129,2]
[323156543,1713738638015,-4409.23748384,0.00012982,2]
[323156544,1713738638024,-806.15697308,0.00012985,2]
[323156545,1713738638033,-499.99,0.00012985,2]
[323156546,1713738638042,-6531.0685406,0.00012989,2]
[323156547,1713738638051,-1363.2786303,0.00012989,2]
[323156548,1713738638059,-4593.3441717,0.00012989,2]
[323156549,1713738638068,-558.4580243,0.00012989,2]
[323156550,1713738638077,-509.3641314,0.00012989,2]
[323156551,1713738638087,-154.2244978,0.00012989,2]
[323156552,1713738638095,-6005.40001034,0.00012998,2]
[323156553,1713738638105,-262.91224085,0.00012998,2]
[323156554,1713738638114,-1266.47293993,0.00012998,2]
[323156555,1713738638123,-218.9607855,0.00012998,2]
[323156556,1713738638132,-370.33042985,0.00012998,2]
[323156557,1713738638141,-32727.32987367,0.00012998,2]
[323156558,1713738638150,-1502.55981792,0.00012998,2]
[323156559,1713738638159,-1240.66300341,0.00012998,2]
[323156560,1713738638169,-36281.87164597,0.00012998,2]
[323156561,1713738638178,-37080.58032442,0.00012999,2]
[323156562,1713738638187,-3053.77461579,0.00012999,2]
[323156563,1713738638201,-85865.11185354,0.00013,2]
[323156564,1713738638219,-627.35673,0.00013,2]
[323156565,1713738638231,-358.33485164,0.00013,2]
[323156566,1713738638242,-3713.37619975,0.00013,2]
[323156567,1713738638253,-5984.0,0.00013,2]
[323156569,1713738639521,-631.33700009,0.00013,2]
[323156570,1713738639533,-345.59999998,0.00013,2]
[323156571,1713738639544,-807.724,0.00013,2]
[323156572,1713738639576,-5024.67506042,0.00013,2]
[323156573,1713738639595,-389.72999925,0.00013,2]
[323156574,1713738639640,-7225.95188826,0.00013,2]
[323156575,1713738641289,-680.51216495,0.00013,2]
[323156576,1713738641302,-652.20074213,0.00013,2]
[323156577,1713738641323,-617.42097586,0.00013,2]
[323156578,1713738641353,-339.25813426,0.00013,2]
[323156579,1713738641365,-399.89070069,0.00013,2]
[323156580,1713738641377,-1163.68068873,0.00013,2]
[323156581,1713738641388,-802.9568297,0.00013,2]
[323156582,1713738641430,-2125.22583446,0.00013,2]
[323156583,1713738641441,-688.15196471,0.00013,2]
[323156584,1713738641453,-505.53116172,0.00013,2]
[323156588,1713738642512,-489.23716,0.00013,2]
[323156589,1713738642524,-736.37395775,0.00013,2]
[323156591,1713738642576,-121445.05321587,0.00013,2]
[323156592,1713738642589,-803.47527288,0.00013,2]
[323156593,1713738642627,-10080.35275159,0.00013,2]
[323156594,1713738642642,-127844.74411052,0.00013,2]
[323156595,1713738642652,-505298.88183281,0.00013,2]
[323156596,1713738642684,-7310.91477282,0.00013,2]
[323156597,1713738642696,-1049.41801784,0.00013,2]
[323156598,1713738642708,-7786.92172431,0.00013,2]
[323156599,1713738642719,-690.69,0.00013,2]
[323156600,1713738642776,-582.270009,0.00013,2]
[323156601,1713738642788,-4540.0,0.00013,2]
[323156602,1713738642807,-1066.32182804,0.00013,2]
[323156603,1713738642819,-2882.0,0.00013,2]
[323156604,1713738642858,-4647.97014501,0.00013,2]
[323156616,1713738645585,-363.48067535,0.00012989,2]
[323156617,1713738645597,-693.38000075,0.00012989,2]
[323156618,1713738645608,-359.00939672,0.00012989,2]
[323156619,1713738645619,-2544.80418807,0.00012989,2]
[323156620,1713738645630,-6669.52715471,0.00012989,2]
[323156621,1713738645639,-1526.8873079,0.00012999,2]
[323156622,1713738645648,-83.59133239,0.00013,2]
[323156623,1713738645659,-367467.49940955,0.00013,2]
[323156624,1713738645677,-1515.48982,0.00013,2]
[323156625,1713738645715,-519.67328745,0.00013,2]
[323156626,1713738645726,-736.0,0.00013,2]
[323156627,1713738645799,-29485.04690252,0.00013,2]
[323156628,1713738645810,-565.31460655,0.00013,2]
[323156629,1713738645865,-16231.02761,0.00013,2]
[323156630,1713738677885,150.0,0.00011953,2]
[323156631,1713738677905,224.02783217,0.00011953,2]
[323156632,1713738677927,244625.97216783,0.00011953,2]
[323156634,1713738801481,500.0,0.00011953,2]
[323156635,1713738944069,717.6,0.00010861,2]
[323156636,1713739523687,712.07,0.00010553,2]
[323156637,1713739674078,1000.0,0.00011889,10]
[323156659,1713739831964,-1894.77419089,0.00012425,2]
[323156660,1713739831974,-886.19932439,0.00012426,2]
[323156661,1713739831983,-250.0,0.00012428,2]
[323156662,1713739831993,-21.18944658,0.00012484,2]
[323156663,1713739832004,-277.09441351,0.00012484,2]
[323156664,1713739832015,-330.5443247,0.00012484,2]
[323156665,1713739832057,-309.71181521,0.00012484,2]
[323156666,1713739832066,-537.31876509,0.0001253,2]
[323156667,1713739832112,-462.68123491,0.0001253,2]
[323156668,1713739832122,-297.75,0.00012778,2]
[323156669,1713739832131,-712.07,0.00012817,2]
[323156670,1713739832141,-212.93923644,0.00012868,2]
[323156671,1713739832150,-229.47022,0.0001287,2]
[323156672,1713739832159,-1000.0,0.00012896,2]
[323156673,1713739832168,-2182.94103637,0.000129,2]
[323156674,1713739832180,-778.31142619,0.000129,2]
[323156685,1713739837710,-2085.02544602,0.000129,2]
[323156686,1713739837873,-4388.54080759,0.000129,2]
[323156689,1713739839990,-33654.23168383,0.000129,2]
[323156690,1713739840000,-521.2044,0.000129,2]
[323156691,1713739840009,-2818.4866604,0.0001299,2]
[323156692,1713739840018,-863.9621748,0.0001299,2]
[323156693,1713739840028,-1050.2617208,0.0001299,2]
[323156694,1713739840037,-232.2993227,0.0001299,2]
[323156695,1713739840046,-499.99,0.0001299,2]
[323156696,1713739840056,-364.43051006,0.00012998,2]
[323156697,1713739840065,-763.44365395,0.00012999,2]
[323156698,1713739840074,-477.95506829,0.00012999,2]
[323156699,1713739840083,-442.115,0.00012999,3]
[323156700,1713739840092,-158124.30806797,0.00013,2]
[323156701,1713739840105,-1330.6069291,0.00013,2]
[323156702,1713739840116,-316.045,0.00013,2]
[323156703,1713739840179,-17726.51915762,0.00013,2]
[323156733,1713739843046,-826.25901472,0.00013,2]
[323156734,1713739843057,-37539.23481274,0.00013,2]
[323156735,1713739843069,-2267.5,0.00013,2]
[323156736,1713739843201,-8471.53454755,0.00013,2]
[323156737,1713739843213,-623.41274859,0.00013,2]
[323156742,1713739843281,-623.25,0.00013,2]
[323156743,1713739845755,-382.28943785,0.00013,2]
[323156744,1713739845769,-272.69910537,0.00013,2]
[323156745,1713739845879,-928.81520347,0.00013,2]
[323156746,1713739845890,-627.36546595,0.00013,2]
[323156747,1713739845902,-598.581,0.00013,2]
[323156748,1713739846015,-497.75,0.00013,2]
[323156749,1713739846070,-1303.58494265,0.00013,2]
[323156750,1713739878846,20168.0721423,0.00011889,2]
[323156751,1713739881562,9098.93212911,9e-05,2]
[323156752,1713739885547,942.94052487,0.00011889,2]
[323156753,1713739888097,1471.40604179,0.00011889,2]
[323156754,1713739889318,866.20855631,0.00011889,2]
[323156755,1713739893048,19672.90593508,0.00011889,2]
[323156756,1713739897019,20168.0721423,0.00011889,2]
[323156757,1713739898240,4461.24996803,0.00011,2]
[323156758,1713739904953,942.94052487,0.00011889,2]
[323156759,1713739908539,1471.40604179,0.00011889,2]
[323156760,1713739909039,866.20855631,0.00011889,2]
[323156761,1713739912979,19672.90593508,0.00011889,2]
[323156762,1713739916214,21162.32895902,6.94e-05,2]
[323156763,1713739918964,20168.0721423,0.00011889,2]
[323156764,1713739921012,942.94052487,0.00011889,2]
[323156765,1713739924044,1471.40604179,0.00011889,2]
[323156766,1713739928762,866.20855631,0.00011889,2]
[323156767,1713739932986,19672.90593508,0.00011889,2]
[323156768,1713739939527,20168.0721423,0.00011889,2]
[323156769,1713739939595,942.94052487,0.00011889,2]
[323156770,1713739944053,1471.40604179,0.00011889,2]
[323156771,1713739948992,11627.34521007,0.00011889,2]
[323156772,1713739958994,942.94052487,0.00011889,2]
[323156773,1713739961513,15587.50905898,0.00011889,2]
[323156774,1713739962179,1471.40604179,0.00011889,2]
[323156775,1713739975221,942.94052487,0.00011889,2]
[323156776,1713739988251,1291.43523147,0.00011889,2]
[323156777,1713739990974,942.51706466,0.00011889,2]
[323156778,1713740009536,756.01,0.00010164,2]
[323156780,1713740081076,8179.796012,0.00011963,2]
[323156782,1713740098860,6822.28896223,0.00010164,2]
[323156783,1713740107500,1471.40604179,0.00010164,2]
[323156784,1713740113381,15753.14104068,0.00010164,2]
[323156785,1713740126123,1466.06966696,0.00010164,2]
[323156786,1713740127891,3110.68,0.00011685,2]
[323156787,1713740130260,1820.80388649,0.00011922,2]
[323156788,1713740134630,2540.35536187,0.00012,2]
[323156789,1713740137587,4728.17005222,0.00011999,2]
[323156790,1713740139366,1706.17172575,0.00011922,2]
[323156791,1713740152824,23900.0,0.0001164,2]
[323156792,1713740159291,1878.19259,0.00011958,2]
[323156793,1713740172023,615.412143,0.00011957,2]
[323156794,1713740178956,1852.42,0.00011617,2]
[323156795,1713740179268,20168.0721423,0.0001164,2]
[323156796,1713740181148,866.20855631,0.0001164,2]
[323156797,1713740189522,19672.90593508,0.0001164,2]
[323156798,1713740194808,867.64508127,0.00011245,2]
[323156799,1713740195054,6397.11140184,0.00011917,2]
[323156800,1713740196875,1273.90250981,0.0001164,2]
[323156801,1713740201262,866.20855631,0.0001164,2]
[323156802,1713740213034,18296.60892039,0.0001164,2]
[323156803,1713740219122,4601.11,0.00011605,2]
[323156804,1713740219364,866.20855631,0.0001164,2]
[323156805,1713740235152,866.20855631,0.0001164,2]
[323156806,1713740255391,866.20855631,0.0001164,2]
[323156807,1713740258070,1390.64,0.00011624,2]
[323156808,1713740275714,866.20855631,0.0001164,2]
[323156809,1713740293158,866.20855631,0.00011624,2]
[323156810,1713740295453,2484.95431424,0.00011909,2]
[323156811,1713740300083,521.0,0.00011889,2]
[323156812,1713740309171,866.20855631,0.00011624,2]
[323156813,1713740312009,812.0,0.00011889,2]
[323156814,1713740329168,864.59902192,0.00011889,2]
[323156815,1713740362244,-150.0,0.00012001,2]
[323156816,1713740362905,-150.0,0.00012001,2]
[323156817,1713740364290,-150.0,0.00012001,2]
[323156818,1713740365244,-150.0,0.00012001,2]
[323156819,1713740365717,-150.0,0.00012001,2]
[323156820,1713740367994,2179.20192415,0.00012,2]
[323156821,1713740374387,1750.0,0.00012,2]
[323156822,1713740383053,684.0277903,0.00012,2]
[323156823,1713740387370,1994.39190651,0.00012,2]
[323156824,1713740393313,1839.20042118,0.00012,2]
[323156825,1713740398769,4321.85408576,0.00012,2]
[323156826,1713740405420,1293.76132614,0.00012,2]
[323156827,1713740414640,1241.80746662,0.00012,2]
[323156828,1713740416321,1783.86045865,0.00012,2]
[323156829,1713740419433,1293.76132614,0.00011869,2]
[323156830,1713740438002,1296.10293894,0.00011869,2]
[323156831,1713740438390,4125.68,0.00011698,2]
[323156832,1713740443620,4728.17005222,0.00012,2]
[323156833,1713740449728,155.22238878,0.00012,2]
[323156834,1713740452697,600.0,0.00011698,2]
[323156835,1713740457025,10303.86,0.00011698,2]
[323156836,1713740493237,250.0,0.00011729,2]
[323156837,1713740501355,834.9,9.893e-05,2]
[323156838,1713740506820,709.642579,0.00012,2]
[323156839,1713740509604,155.0,0.00012,2]
[323156840,1713740514023,3165.26449511,0.00011999,2]
[323156841,1713740518335,501.74,0.00011808,2]
[323156842,1713740530017,2412.57273202,0.00011869,2]
[323156843,1713740608478,786.71,0.00011808,2]
[323156844,1713740621676,2432.1744,0.00011903,2]
[323156845,1713740640929,871.41036675,0.00012,2]
[323156846,1713740649460,23900.0,0.00011819,2]
[323156847,1713740703233,3067.07,0.00011819,2]
[323156848,1713740749567,8975.91412767,0.00012,2]
[323156849,1713740790638,537.75403605,0.00012,2]
[323156850,1713740847982,155.0,0.00012,2]
[323156851,1713740901000,238.2,0.00011861,2]
[323156852,1713740972179,1070.8403,0.00011901,2]
[323156853,1713740981161,250.0,0.00011781,2]
[323156876,1713741031907,-508.47198714,0.00012001,2]
[323156877,1713741031924,-2470.52801286,0.00012001,2]
[323156878,1713741031933,-1249.7452849,0.0001202,2]
[323156879,1713741031945,-625.3983,0.0001202,2]
[323156882,1713741031986,-479.8352797,0.0001202,2]
[323156883,1713741031999,-150.0,0.00012023,2]
[323156884,1713741032009,-1000.0,0.00012024,2]
[323156885,1713741032019,-999.99,0.00012024,2]
[323156886,1713741032028,-499.99,0.00012024,2]
[323156887,1713741032037,-8758.36429654,0.00012033,2]
[323156888,1713741032046,-3224.27078806,0.00012178,2]
[323156889,1713741032056,-16326.793,0.00012184,2]
[323156890,1713741032065,-2352.13843842,0.000122,2]
[323156891,1713741032074,-803.66240074,0.00012283,2]
[323156892,1713741032083,-1000.0,0.00012283,2]
[323156893,1713741032092,-5545.18226245,0.00012284,2]
[323156894,1713741032101,-2090.34,0.00012284,2]
[323156895,1713741032111,-1781.20605272,0.00012284,2]
[323156896,1713741032172,-2258.90174517,0.00012284,2]
[323156897,1713741032196,-5959.88220211,0.00012284,2]
[323156898,1713741032206,-5300.3778,0.00012396,2]
[323156899,1713741032215,-1351.28058866,0.00012494,2]
[323156900,1713741032224,-2999.50193074,0.00012494,2]
[323156901,1713741032234,-7339.8708047,0.00012494,2]
[323156902,1713741032243,-683.77972467,0.00012494,2]
[323156903,1713741032252,-1993.91583567,0.00012494,2]
[323156904,1713741032262,-698.49139149,0.00012494,2]
[323156905,1713741032279,-1140.27681301,0.00012494,2]
[323156906,1713741032289,-3836.50998699,0.00012494,2]
[323156916,1713741032618,3715.23560069,0.00012,2]
[323156940,1713741036128,793.15,0.00010286,2]
[323156949,1713741037908,-483.72464923,0.00012494,2]
[323156950,1713741037919,-1584.87437962,0.00012494,2]
[323156951,1713741037930,-304.20499856,0.00012494,2]
[323156952,1713741037940,-1244.72929117,0.00012494,2]
[323156953,1713741037949,-535.09844777,0.00012494,2]
[323156954,1713741037961,-18.49727662,0.00012494,2]
[323156955,1713741037971,-1989.48593242,0.00012495,2]
[323156956,1713741037982,-193.83530495,0.00012495,2]
[323156957,1713741037992,-257.0580173,0.00012496,2]
[323156958,1713741040860,-150.0,0.00012445,2]
[323156959,1713741040870,-231.52753166,0.00012492,2]
[323156960,1713741040879,-646.33696876,0.00012496,2]
[323156964,1713741042952,-805.43476892,0.00012496,2]
[323156965,1713741042963,-2306.6388282,0.00012496,2]
[323156966,1713741043163,-3572.08152298,0.00012496,2]
[323156967,1713741043222,-16163.77912786,0.00012496,2]
[323156968,1713741043233,-661.66608519,0.00012496,2]
[323156989,1713741048962,-37019.90361816,0.00012496,2]
[323156990,1713741049151,-12705.62897682,0.00012496,2]
[323156991,1713741133194,671.4635,0.00011901,2]
[323156992,1713741159984,23890.0,0.00011901,2]
[323156993,1713741190990,2044.38,0.00011869,2]
[323157001,1713741452827,250.0,0.00011755,2]
[323157002,1713741503427,171.84,0.00011707,2]
[323157003,1713741619800,787.71,9.782e-05,2]
[323157004,1713741769529,1362.58,0.00011585,2]
[323157005,1713742029385,250.0,0.00011561,2]
[323157006,1713742051638,155.11739703,0.00012,2]
[323157007,1713742129889,1000.0,0.00011641,2]
[323157008,1713742133909,748.32,9.723e-05,2]
[323157009,1713742134106,748.32,0.00011987,2]
[323157010,1713742187597,1750.0,0.00012,2]
[323157020,1713742232224,-2354.9788646,0.0001202,2]
[323157021,1713742232234,-4615.90987386,0.0001202,2]
[323157022,1713742232248,-781.95019923,0.0001202,2]
[323157023,1713742232263,-1806.00192747,0.0001202,2]
[323157024,1713742232275,-827.13712285,0.0001202,2]
[323157025,1713742232320,-1679.7841777,0.0001202,2]
[323157026,1713742232333,-13636.46349914,0.0001202,2]
[323157027,1713742232344,-2359.48463868,0.00012021,2]
[323157028,1713742232355,-150.0,0.00012022,2]
[323157029,1713742232365,-1000.0,0.00012298,2]
[323157030,1713742232377,-11473.4247,0.00012298,2]
[323157031,1713742232387,-155.45651559,0.00012299,2]
[323157032,1713742232399,-999.99,0.00012389,2]
[323157033,1713742232410,-500.0,0.0001239,2]
[323157034,1713742232422,-1798.85,0.00012396,2]
[323157035,1713742232433,-6833.4,0.00012396,2]
[323157036,1713742232444,-4953.5002,0.00012396,2]
[323157037,1713742232456,-2010.0711,0.00012396,2]
[323157038,1713742232467,-205.95871073,0.00012397,2]
[323157039,1713742232477,-133913.38570965,0.00012398,2]
[323157040,1713742232489,-205645.78859138,0.00012398,2]
[323157041,1713742232501,-667.36237526,0.00012398,2]
[323157042,1713742232519,-8104.30772737,0.00012398,2]
[323157043,1713742232531,-197779.24059593,0.00012398,2]
[323157044,1713742232541,-147036.98794236,0.00012399,2]
[323157045,1713742232553,-14100.000003,0.00012399,2]
[323157046,1713742232566,-626.71201654,0.00012399,2]
[323157047,1713742232579,-346.48303694,0.00012399,2]
[323157048,1713742232591,-401.82437314,0.00012399,2]
[323157049,1713742232645,-418.90217464,0.00012399,2]
[323157050,1713742232658,-259.86200001,0.00012399,2]
[323157051,1713742232669,-357.4799971,0.00012399,2]
[323157052,1713742232697,-896.99068152,0.00012399,2]
[323157053,1713742232709,-1001.25784405,0.00012399,2]
[323157054,1713742232721,-320.76,0.00012399,2]
[323157060,1713742238086,-1244.24905786,0.00012019,2]
[323157061,1713742238095,-1120.84013636,0.00012399,2]
[323157062,1713742238149,-633.57,0.00012399,2]
[323157063,1713742238197,-27561.82820925,0.00012399,2]
[323157064,1713742238254,-2858.26412,0.00012399,2]
[323157065,1713742238312,-31910.6734275,0.00012399,2]
[323157066,1713742238323,-835.11710452,0.00012399,2]
[323157067,1713742238339,-6628.30439943,0.00012399,2]
[323157068,1713742238395,-578.9776056,0.00012399,2]
[323157076,1713742241048,-183.86745744,0.00012388,2]
[323157077,1713742241058,-280.95268365,0.00012399,2]
[323157092,1713742243202,-3523.4328,0.00012399,2]
[323157093,1713742243317,-948.63750654,0.00012399,2]
[323157094,1713742243328,-1220.00000001,0.00012399,2]
[323157095,1713742243460,-1132.14193784,0.00012399,2]
[323157096,1713742243470,-5259.95806216,0.00012399,2]
[323157097,1713742243481,-513.30565687,0.00012399,2]
[323157098,1713742243506,-400.75631753,0.00012399,2]
[323157099,1713742243519,-1031.53958,0.00012399,2]
[323157100,1713742243531,-1025.18051412,0.00012399,2]
[323157102,1713742243547,-555.0,0.00012399,2]
[323157103,1713742243563,-70206.37636932,0.00012399,2]
[323157104,1713742243572,-500.0,0.0001243,2]
[323157105,1713742243581,-500.0,0.0001246,2]
[323157106,1713742243592,-155.0,0.00012494,2]
[323157108,1713742243602,-305.07906936,0.00012494,2]
[323157109,1713742243612,-1133.64537646,0.00012494,2]
[323157110,1713742243621,-194.24270021,0.00012494,2]